fUSD/lending_fUSD_20241205
["ID","MTS","AMOUNT","RATE_DAILY","PERIOD"]
[344400571,1733413842392,-500.0,7.499e-05,2]
[344400573,1733413842401,-500.0,7.499e-05,2]
[344400575,1733413842411,-222.57,7.499e-05,2]
[344400576,1733413842419,-422.55,7.499e-05,2]
[344400578,1733413842429,-500.0,7.499e-05,2]
[344400581,1733413842439,-500.0,7.499e-05,2]
[344400583,1733413842449,-374.80479746,7.499e-05,2]
[344400585,1733413842458,-1477.57,7.499e-05,2]
[344400587,1733413842467,-1477.57,7.499e-05,2]
[344400589,1733413842477,-1477.57,7.499e-05,2]
[344400591,1733413842488,-1477.57,7.499e-05,2]
[344400593,1733413842501,-1477.57,7.499e-05,2]
[344400594,1733413842510,-1477.57,7.499e-05,2]
[344400597,1733413842520,-1477.57,7.499e-05,2]
[344400598,1733413842529,-500.0,7.499e-05,2]
[344400600,1733413842539,-500.0,7.499e-05,2]
[344400603,1733413842548,-500.0,7.499e-05,2]
[344400604,1733413842559,-500.0,7.499e-05,2]
[344400606,1733413842567,-500.0,7.499e-05,2]
[344400608,1733413842576,-500.0,7.499e-05,2]
[344400610,1733413842586,-500.0,7.499e-05,2]
[344400613,1733413842595,-500.0,7.499e-05,2]
[344400615,1733413842604,-168.06,7.499e-05,2]
[344400617,1733413842614,-500.0,7.499e-05,2]
[344400619,1733413842623,-500.0,7.499e-05,2]
[344400621,1733413842632,-500.0,7.499e-05,2]
[344400623,1733413842641,-500.0,7.499e-05,2]
[344400625,1733413842650,-500.0,7.499e-05,2]
[344400626,1733413842659,-500.0,7.499e-05,2]
[344400628,1733413842668,-299.54,7.499e-05,2]
[344400630,1733413842677,-177.74,7.499e-05,2]
[344400632,1733413842686,-196.103,7.5e-05,2]
[344400634,1733413842695,-150.0,7.5e-05,2]
[344400636,1733413842704,-151.339,7.5e-05,2]
[344400638,1733413842713,-5154.28,7.5e-05,2]
[344400640,1733413842726,-150.0,7.5e-05,2]
[344400642,1733413842735,-1098.0,7.5e-05,2]
[344400644,1733413842746,-592.0,7.5e-05,2]
[344400646,1733413842755,-9006.49149019,7.5e-05,2]
[344400648,1733413842764,-10565.93709361,7.5e-05,2]
[344400650,1733413842773,-20000.0,7.5e-05,2]
[344400652,1733413842782,-65598.81400895,7.5e-05,2]
[344400654,1733413842795,-6618.15798748,7.5e-05,2]
[344400657,1733413842806,-881.6512514,7.5e-05,2]
[344400660,1733413842830,-150.0,7.5e-05,2]
[344400662,1733413842840,-322.58446192,7.5e-05,2]
[344400664,1733413842851,-1302.53483451,7.5e-05,2]
[344400666,1733413842862,-153578.8891826,7.5e-05,2]
[344400667,1733413842873,-2245.54570582,7.5e-05,2]
[344400668,1733413842884,-5168.879272,7.5e-05,2]
[344400669,1733413842896,-1728.77262585,7.5e-05,2]
[344400670,1733413842907,-1925.36,7.5e-05,2]
[344400671,1733413842918,-919.87288998,7.5e-05,2]
[344400740,1733413843523,-500.0,7.473e-05,2]
[344400742,1733413843533,-9467.6570232,7.5e-05,2]
[344400744,1733413843544,-2753.30799768,7.5e-05,2]
[344400745,1733413843555,-6009.27742292,7.5e-05,2]
[344400746,1733413843566,-1521.77696085,7.5e-05,2]
[344400751,1733413843654,-46026.4437246,7.5e-05,2]
[344400753,1733413843666,-20228.1696,7.5e-05,2]
[344400755,1733413843677,-25085.18606605,7.5e-05,2]
[344400758,1733413843688,-18920.0,7.5e-05,2]
[344400760,1733413843698,-4042.47407017,7.5e-05,2]
[344400762,1733413843710,-609.2605884,7.5e-05,2]
[344400770,1733413843781,-500.0,7.498e-05,2]
[344400772,1733413843791,-24253.01410245,7.5e-05,2]
[344400774,1733413843801,-6027.58266647,7.5e-05,2]
[344400777,1733413843815,-3956.28513446,7.5e-05,2]
[344400788,1733413843918,-364.12,7.49e-05,2]
[344400790,1733413843927,-40.46724177,7.5e-05,2]
[344400792,1733413843938,-23897.6775,7.5e-05,2]
[344400840,1733413844383,-7036.67488288,7.5e-05,2]
[344400953,1733413846427,-500.0,7.498e-05,2]
[344400954,1733413846437,-444.25567,7.499e-05,2]
[344400955,1733413846449,-55.74433,7.499e-05,2]
[344400956,1733413846458,-500.0,7.499e-05,2]
[344400957,1733413846468,-477.5004,7.499e-05,2]
[344400958,1733413846477,-4073.5389889,7.5e-05,2]
[344400959,1733413846489,-2439.854742,7.5e-05,2]
[344400960,1733413846502,-10105.94188431,7.5e-05,2]
[344400961,1733413846513,-2147.09999998,7.5e-05,2]
[344400962,1733413846524,-517.36791535,7.5e-05,2]
[344400963,1733413846536,-729.96392628,7.5e-05,2]
[344400964,1733413846558,-17427.4854,7.5e-05,2]
[344400965,1733413846569,-40503.99999999,7.5e-05,2]
[344400966,1733413846581,-345.55,7.5e-05,2]
[344400967,1733413846592,-40377.56303153,7.5e-05,2]
[344400968,1733413846671,-1654.07342479,7.5e-05,2]
[344400969,1733413846683,-31506.12142154,7.5e-05,2]
[344400970,1733413846694,-2381.9544001,7.5e-05,2]
[344400971,1733413846803,-42069.35403911,7.5e-05,2]
[344400973,1733413846815,-5021.71019642,7.5e-05,2]
[344400975,1733413846931,-301.04524444,7.5e-05,2]
[344400977,1733413846943,-7087.000001,7.5e-05,2]
[344400985,1733413912923,500.0,7e-05,2]
[344400986,1733413924765,153.64,6.686e-05,2]
[344400987,1733414188880,410.3,6.664e-05,2]
[344400995,1733414654565,150.0,7.035e-05,2]
[344400996,1733414690254,3437.38,6.62e-05,2]
[344400997,1733414701269,250.0,6.619e-05,2]
[344400998,1733414712275,200.0,6.638e-05,2]
[344400999,1733414713337,2000.0,6.638e-05,2]
[344401000,1733414733770,150.0,0.00019778,120]
[344401001,1733414757529,2633.48,6.627e-05,2]
[344401002,1733414842931,1000.0,6.9e-05,2]
[344401003,1733414844703,2100.0,7e-05,2]
[344401004,1733414921906,1500.0,6.573e-05,2]
[344401005,1733414924775,758.56,6.573e-05,2]
[344401006,1733414947558,-644.906,7.12e-05,2]
[344401007,1733414947598,-169.81,7.179e-05,2]
[344401008,1733414947647,-207.2461046,7.35e-05,2]
[344401009,1733414947686,-758.56,7.395e-05,2]
[344401010,1733414947725,-2500.0,7.4e-05,2]
[344401011,1733414947761,-300.0,7.424e-05,2]
[344401012,1733414947795,-9273.0,7.425e-05,2]
[344401013,1733414947846,-1166.0,7.453e-05,2]
[344401014,1733414947882,-879.643,7.453e-05,2]
[344401015,1733414947919,-150.0,7.462e-05,2]
[344401016,1733414947955,-435.12,7.47e-05,2]
[344401017,1733414947993,-150.0,7.472e-05,2]
[344401018,1733414948035,-424.296109,7.473e-05,2]
[344401019,1733414948074,-275.01674508,7.473e-05,2]
[344401020,1733414948108,-511.3901929,7.473e-05,2]
[344401021,1733414948143,-500.0,7.473e-05,2]
[344401022,1733414948178,-434.97807611,7.473e-05,2]
[344401023,1733414948218,-500.0,7.473e-05,2]
[344401024,1733414948253,-500.0,7.473e-05,2]
[344401025,1733414948289,-500.0,7.473e-05,2]
[344401026,1733414948328,-500.0,7.473e-05,2]
[344401027,1733414948364,-161.214572,7.473e-05,2]
[344401028,1733414948400,-150.0,7.479e-05,2]
[344401029,1733414948435,-435.12,7.48e-05,2]
[344401030,1733414948476,-433.72,7.48e-05,2]
[344401031,1733414948517,-174.85,7.48e-05,2]
[344401032,1733414948558,-300.0,7.48e-05,2]
[344401033,1733414948594,-435.12,7.48e-05,2]
[344401034,1733414948628,-300.0,7.48e-05,2]
[344401035,1733414948663,-198.69874792,7.488e-05,2]
[344401036,1733414952376,-3262.62090478,7.488e-05,2]
[344401037,1733414952410,-364.12,7.49e-05,2]
[344401038,1733414952446,-150.0,7.49e-05,2]
[344401039,1733414952491,-12534.84,7.49e-05,2]
[344401040,1733414952526,-1952.77621154,7.493e-05,2]
[344401041,1733414954660,-13471.28576736,7.493e-05,2]
[344401042,1733414954696,-410.3,7.498e-05,2]
[344401043,1733414954734,-1513.01912122,7.498e-05,2]
[344401044,1733414954771,-510.4720954,7.498e-05,2]
[344401045,1733414954805,-500.0,7.498e-05,2]
[344401046,1733414954840,-500.0,7.498e-05,2]
[344401047,1733414954874,-500.0,7.498e-05,2]
[344401048,1733414954909,-500.0,7.498e-05,2]
[344401049,1733414954942,-501.66921662,7.498e-05,2]
[344401050,1733414954980,-500.0,7.498e-05,2]
[344401051,1733414955015,-739.13,7.498e-05,2]
[344401052,1733414955048,-739.13,7.498e-05,2]
[344401053,1733414955082,-385.46681251,7.498e-05,2]
[344401054,1733414955116,-500.0,7.498e-05,2]
[344401055,1733414955150,-500.0,7.498e-05,2]
[344401056,1733414955185,-500.0,7.498e-05,2]
[344401057,1733414955225,-500.0,7.498e-05,2]
[344401058,1733414955261,-500.0,7.498e-05,2]
[344401059,1733414955295,-500.0,7.498e-05,2]
[344401060,1733414955331,-500.0,7.498e-05,2]
[344401061,1733414955366,-500.0,7.498e-05,2]
[344401062,1733414957448,300.0,6.678e-05,2]
[344401063,1733414961942,-870.19,7.46e-05,2]
[344401064,1733414961978,-500.0,7.498e-05,2]
[344401065,1733414962012,-394.935829,7.498e-05,2]
[344401066,1733414962046,-500.0,7.498e-05,2]
[344401067,1733414962079,-466.45,7.498e-05,2]
[344401068,1733414962112,-500.0,7.498e-05,2]
[344401069,1733414962145,-331.88,7.498e-05,2]
[344401070,1733414962178,-500.0,7.498e-05,2]
[344401071,1733414962211,-500.0,7.498e-05,2]
[344401072,1733414962244,-231.91,7.498e-05,2]
[344401073,1733414962277,-500.0,7.498e-05,2]
[344401074,1733414962309,-500.0,7.498e-05,2]
[344401075,1733414962346,-500.0,7.498e-05,2]
[344401076,1733414962379,-500.0,7.498e-05,2]
[344401077,1733414962412,-504.35,7.498e-05,2]
[344401078,1733414962445,-626.03784532,7.498e-05,2]
[344401079,1733414962481,-500.0,7.498e-05,2]
[344401080,1733414962515,-408.9110141,7.498e-05,2]
[344401081,1733414962553,-500.0,7.498e-05,2]
[344401082,1733414962589,-500.0,7.498e-05,2]
[344401083,1733414962625,-500.0,7.498e-05,2]
[344401084,1733414962672,-500.0,7.498e-05,2]
[344401085,1733414962782,-500.0,7.498e-05,2]
[344401086,1733414962866,-500.0,7.498e-05,2]
[344401087,1733414962901,-500.0,7.498e-05,2]
[344401088,1733414962937,-500.0,7.498e-05,2]
[344401089,1733414962973,-481.7358834,7.498e-05,2]
[344401090,1733414963008,-500.0,7.498e-05,2]
[344401091,1733414963042,-169.44615792,7.498e-05,2]
[344401092,1733414963075,-606.51395273,7.498e-05,2]
[344401093,1733414963108,-500.0,7.498e-05,2]
[344401094,1733414963143,-228.36697802,7.498e-05,2]
[344401095,1733414963407,-500.0,7.498e-05,2]
[344401096,1733414963445,-500.0,7.498e-05,2]
[344401097,1733414963484,-5492.21820683,7.499e-05,2]
[344401098,1733414963518,-376.10394827,7.499e-05,2]
[344401099,1733414963552,-739.13,7.499e-05,2]
[344401100,1733414963585,-739.13,7.499e-05,2]
[344401101,1733414963618,-739.13,7.499e-05,2]
[344401102,1733414963651,-447.99036882,7.499e-05,2]
[344401103,1733414966763,-500.0,7.473e-05,2]
[344401104,1733414966796,-10433.4278246,7.493e-05,2]
[344401105,1733414966830,-291.13963118,7.499e-05,2]
[344401106,1733414966862,-739.13,7.499e-05,2]
[344401107,1733414966895,-739.13,7.499e-05,2]
[344401108,1733414966929,-739.13,7.499e-05,2]
[344401109,1733414966965,-2229.647,7.499e-05,2]
[344401110,1733414966998,-457.58,7.499e-05,2]
[344401111,1733414967032,-171.689,7.499e-05,2]
[344401112,1733414967067,-500.0,7.499e-05,2]
[344401113,1733414967102,-500.0,7.499e-05,2]
[344401114,1733414967136,-500.0,7.499e-05,2]
[344401115,1733414967169,-500.0,7.499e-05,2]
[344401116,1733414967203,-500.0,7.499e-05,2]
[344401117,1733414967239,-500.0,7.499e-05,2]
[344401118,1733414967270,-500.0,7.499e-05,2]
[344401119,1733414967300,-500.0,7.499e-05,2]
[344401120,1733414967332,-500.0,7.499e-05,2]
[344401121,1733414967367,-257.43940078,7.499e-05,2]
[344401122,1733414967615,-251.64500025,7.499e-05,2]
[344401123,1733414967648,-500.0,7.499e-05,2]
[344401124,1733414967681,-179.54528811,7.499e-05,2]
[344401125,1733414967717,-172.34658821,7.499e-05,2]
[344401126,1733414967750,-500.0,7.499e-05,2]
[344401127,1733414967784,-500.0,7.499e-05,2]
[344401128,1733414967818,-500.0,7.499e-05,2]
[344401129,1733414967852,-500.0,7.499e-05,2]
[344401130,1733414967885,-500.0,7.499e-05,2]
[344401131,1733414967919,-176.30053374,7.499e-05,2]
[344401132,1733414978072,-323.69946626,7.499e-05,2]
[344401133,1733414978095,-500.0,7.499e-05,2]
[344401134,1733414978118,-150.92158316,7.499e-05,2]
[344401135,1733414978141,-500.0,7.499e-05,2]
[344401136,1733414978163,-500.0,7.499e-05,2]
[344401137,1733414978185,-500.0,7.499e-05,2]
[344401138,1733414978207,-500.0,7.499e-05,2]
[344401139,1733414978234,-500.0,7.499e-05,2]
[344401140,1733414978256,-500.0,7.499e-05,2]
[344401141,1733414978277,-500.0,7.499e-05,2]
[344401142,1733414978299,-500.0,7.499e-05,2]
[344401143,1733414978323,-500.0,7.499e-05,2]
[344401144,1733414978345,-500.0,7.499e-05,2]
[344401145,1733414978366,-500.0,7.499e-05,2]
[344401146,1733414978387,-500.0,7.499e-05,2]
[344401147,1733414978408,-500.0,7.499e-05,2]
[344401148,1733414978435,-500.0,7.499e-05,2]
[344401149,1733414978456,-500.0,7.499e-05,2]
[344401150,1733414978480,-500.0,7.499e-05,2]
[344401151,1733414978501,-507.83396932,7.499e-05,2]
[344401152,1733414978522,-501.72569383,7.499e-05,2]
[344401153,1733414978545,-500.0,7.499e-05,2]
[344401154,1733414978568,-500.0,7.499e-05,2]
[344401155,1733414978589,-500.0,7.499e-05,2]
[344401156,1733414978612,-500.0,7.499e-05,2]
[344401157,1733414978633,-652.8,7.499e-05,2]
[344401158,1733414978656,-652.8,7.499e-05,2]
[344401159,1733414978678,-652.8,7.499e-05,2]
[344401160,1733414978699,-652.8,7.499e-05,2]
[344401161,1733414978722,-652.8,7.499e-05,2]
[344401162,1733414978744,-500.0,7.499e-05,2]
[344401163,1733414978766,-500.0,7.499e-05,2]
[344401164,1733414978788,-500.0,7.499e-05,2]
[344401165,1733414978810,-500.0,7.499e-05,2]
[344401166,1733414978831,-500.0,7.499e-05,2]
[344401167,1733414978855,-500.0,7.499e-05,2]
[344401168,1733414978876,-185.10680314,7.499e-05,2]
[344401169,1733414978898,-500.0,7.499e-05,2]
[344401170,1733414978919,-500.0,7.499e-05,2]
[344401171,1733414978944,-500.0,7.499e-05,2]
[344401172,1733414978966,-426.13693914,7.499e-05,2]
[344401173,1733414978990,-500.0,7.499e-05,2]
[344401174,1733414979012,-198.38,7.499e-05,2]
[344401175,1733414979034,-500.0,7.499e-05,2]
[344401176,1733414979057,-500.0,7.499e-05,2]
[344401177,1733414979079,-500.0,7.499e-05,2]
[344401178,1733414979396,-500.0,7.499e-05,2]
[344401179,1733414979420,-500.0,7.499e-05,2]
[344401180,1733414979441,-500.0,7.499e-05,2]
[344401181,1733414979462,-500.0,7.499e-05,2]
[344401182,1733414979486,-500.0,7.499e-05,2]
[344401183,1733414979508,-384.24,7.499e-05,2]
[344401184,1733414979530,-500.0,7.499e-05,2]
[344401185,1733414979552,-500.0,7.499e-05,2]
[344401186,1733414979572,-500.0,7.499e-05,2]
[344401187,1733414979594,-500.0,7.499e-05,2]
[344401188,1733414979614,-453.99568322,7.499e-05,2]
[344401189,1733414979635,-379.47991318,7.499e-05,2]
[344401190,1733414979655,-500.0,7.499e-05,2]
[344401191,1733414979676,-500.0,7.499e-05,2]
[344401192,1733414979698,-313.92738849,7.499e-05,2]
[344401193,1733414979721,-500.0,7.499e-05,2]
[344401194,1733414979742,-500.0,7.499e-05,2]
[344401195,1733414979763,-500.0,7.499e-05,2]
[344401196,1733414979786,-500.0,7.499e-05,2]
[344401197,1733414979806,-783.89,7.499e-05,2]
[344401198,1733414979827,-783.89,7.499e-05,2]
[344401199,1733414979848,-783.89,7.499e-05,2]
[344401200,1733414979869,-783.89,7.499e-05,2]
[344401201,1733414979889,-783.89,7.499e-05,2]
[344401202,1733414979912,-577.60608743,7.499e-05,2]
[344401203,1733414979934,-500.0,7.499e-05,2]
[344401204,1733414979974,-303.03116918,7.499e-05,2]
[344401205,1733414979999,-301.32397296,7.499e-05,2]
[344401206,1733414980022,-500.0,7.499e-05,2]
[344401207,1733414980045,-500.0,7.499e-05,2]
[344401208,1733414980067,-500.0,7.499e-05,2]
[344401209,1733414980090,-500.0,7.499e-05,2]
[344401210,1733414980112,-214.28405649,7.499e-05,2]
[344401211,1733414980133,-500.0,7.499e-05,2]
[344401212,1733414980155,-500.0,7.499e-05,2]
[344401213,1733414980178,-500.0,7.499e-05,2]
[344401214,1733414980202,-177.60597906,7.499e-05,2]
[344401215,1733414980227,-500.0,7.499e-05,2]
[344401216,1733414980249,-500.0,7.499e-05,2]
[344401217,1733414980271,-500.0,7.499e-05,2]
[344401218,1733414980292,-500.0,7.499e-05,2]
[344401219,1733414980313,-500.0,7.499e-05,2]
[344401220,1733414980337,-204.43440151,7.499e-05,2]
[344401221,1733414980359,-500.0,7.499e-05,2]
[344401222,1733414980383,-163.44203699,7.499e-05,2]
[344401223,1733414980406,-649.49421104,7.499e-05,2]
[344401224,1733414980429,-500.0,7.499e-05,2]
[344401225,1733414980450,-500.0,7.499e-05,2]
[344401226,1733414980475,-500.0,7.499e-05,2]
[344401227,1733414980501,-500.0,7.499e-05,2]
[344401228,1733414980524,-500.0,7.499e-05,2]
[344401229,1733414980546,-500.0,7.499e-05,2]
[344401230,1733414980569,-500.0,7.499e-05,2]
[344401231,1733414980591,-295.032059,7.499e-05,2]
[344401232,1733414980614,-969.12,7.499e-05,2]
[344401233,1733414980636,-969.12,7.499e-05,2]
[344401234,1733414980664,-969.12,7.499e-05,2]
[344401235,1733414980688,-969.12,7.499e-05,2]
[344401236,1733414980714,-969.12,7.499e-05,2]
[344401237,1733414980740,-500.0,7.499e-05,2]
[344401238,1733414980763,-500.0,7.499e-05,2]
[344401239,1733414980787,-500.0,7.499e-05,2]
[344401240,1733414980808,-540.13809018,7.499e-05,2]
[344401241,1733414980832,-500.0,7.499e-05,2]
[344401242,1733414980855,-500.0,7.499e-05,2]
[344401243,1733414980877,-500.0,7.499e-05,2]
[344401244,1733414980901,-610.27630515,7.499e-05,2]
[344401245,1733414980924,-568.56,7.499e-05,2]
[344401246,1733414980948,-500.0,7.499e-05,2]
[344401247,1733414980976,-500.0,7.499e-05,2]
[344401248,1733414981002,-353.76263757,7.499e-05,2]
[344401249,1733414981026,-500.0,7.499e-05,2]
[344401250,1733414981051,-500.0,7.499e-05,2]
[344401251,1733414981075,-500.0,7.499e-05,2]
[344401252,1733414981099,-197.07627649,7.499e-05,2]
[344401253,1733414981121,-215.07197122,7.499e-05,2]
[344401254,1733414981146,-500.0,7.499e-05,2]
[344401255,1733414981169,-500.0,7.499e-05,2]
[344401256,1733414981191,-513.03523999,7.499e-05,2]
[344401257,1733414981214,-599.65272891,7.499e-05,2]
[344401258,1733414981240,-500.0,7.499e-05,2]
[344401259,1733414981264,-500.0,7.499e-05,2]
[344401260,1733414981288,-500.0,7.499e-05,2]
[344401261,1733414981312,-500.0,7.499e-05,2]
[344401262,1733414981339,-500.0,7.499e-05,2]
[344401263,1733414981362,-500.0,7.499e-05,2]
[344401264,1733414981385,-500.0,7.499e-05,2]
[344401265,1733414981408,-500.0,7.499e-05,2]
[344401266,1733414981431,-413.30494293,7.499e-05,2]
[344401267,1733414981453,-150.0,7.5e-05,2]
[344401268,1733414981478,-566.0,7.5e-05,2]
[344401269,1733414981501,-150.0,7.5e-05,2]
[344401270,1733414981522,-1262.0,7.5e-05,2]
[344401271,1733414981544,-2003.0,7.5e-05,2]
[344401272,1733414981567,-150.0,7.5e-05,2]
[344401273,1733414981590,-631.0,7.5e-05,2]
[344401274,1733414981612,-1787.852,7.5e-05,2]
[344401275,1733414981634,-222.857,7.5e-05,2]
[344401276,1733414981655,-402.369,7.5e-05,2]
[344401277,1733414981677,-695.0,7.5e-05,2]
[344401278,1733414981699,-8105.84234118,7.5e-05,2]
[344401279,1733414981724,-9509.34338424,7.5e-05,2]
[344401280,1733414981750,-7633.10666874,7.5e-05,2]
[344401284,1733415013749,250.0,6.754e-05,2]
[344401285,1733415020280,23900.0,6.737e-05,2]
[344401290,1733415031565,-150.0,7.257e-05,2]
[344401291,1733415031575,-150.0,7.267e-05,2]
[344401292,1733415031584,-150.0,7.268e-05,2]
[344401293,1733415031594,-207.2461047,7.35e-05,2]
[344401294,1733415031603,-150.0,7.443e-05,2]
[344401295,1733415031613,-150.0,7.492e-05,2]
[344401296,1733415031622,-500.0,7.499e-05,2]
[344401297,1733415031631,-300.0,7.499e-05,2]
[344401298,1733415031640,-150.0,7.5e-05,2]
[344401299,1733415031649,-2067.1604953,7.5e-05,2]
[344401300,1733415031661,-389879.40971346,7.5e-05,2]
[344401301,1733415031672,-541.345,7.5e-05,2]
[344401302,1733415031685,-460.515,7.5e-05,2]
[344401303,1733415031697,-30460.6817387,7.5e-05,2]
[344401304,1733415031707,-1024.18739398,7.5e-05,2]
[344401305,1733415031786,-3237.79270211,7.5e-05,2]
[344401350,1733415037440,-500.0,7.499e-05,2]
[344401351,1733415037449,-333.16164748,7.499e-05,2]
[344401352,1733415037652,-166.83835252,7.499e-05,2]
[344401353,1733415037662,-500.0,7.499e-05,2]
[344401354,1733415037671,-500.0,7.499e-05,2]
[344401355,1733415037681,-500.0,7.499e-05,2]
[344401356,1733415037690,-3229.89987536,7.5e-05,2]
[344401357,1733415037702,-2577.8400004,7.5e-05,2]
[344401358,1733415037714,-1712.72747435,7.5e-05,2]
[344401359,1733415037730,-1016.77216152,7.5e-05,2]
[344401360,1733415038180,-7207.2000005,7.5e-05,2]
[344401366,1733415039461,-33084.87552657,7.5e-05,2]
[344401367,1733415039495,-4507.86440403,7.5e-05,2]
[344401368,1733415039602,-11680.04243403,7.5e-05,2]
[344401400,1733415040860,-0.4899501,7.5e-05,2]
[344401401,1733415040872,-30583.5549014,7.5e-05,2]
[344401402,1733415040884,-6737.3265618,7.5e-05,2]
[344401403,1733415040903,-263.94035,7.5e-05,2]
[344401404,1733415040914,-4534.13495511,7.5e-05,2]
[344401405,1733415040926,-3550.747848,7.5e-05,2]
[344401406,1733415040938,-780.07,7.5e-05,2]
[344401407,1733415040949,-23985.0,7.5e-05,2]
[344401416,1733415042502,-604.87477477,7.499e-05,2]
[344401417,1733415042514,-620.58,7.499e-05,2]
[344401418,1733415042529,-620.58,7.499e-05,2]
[344401419,1733415042541,-902.83,7.499e-05,2]
[344401420,1733415042554,-620.58,7.499e-05,2]
[344401421,1733415042566,-620.58,7.499e-05,2]
[344401422,1733415042578,-902.83,7.499e-05,2]
[344401423,1733415042589,-340693.01990626,7.5e-05,2]
[344401424,1733415042600,-289.72108489,7.5e-05,2]
[344401425,1733415042612,-150.0,7.5e-05,2]
[344401426,1733415042623,-150.0,7.5e-05,2]
[344401427,1733415042634,-435.12,7.51e-05,2]
[344401428,1733415042645,-150.0,7.51e-05,2]
[344401429,1733415042655,-435.43,7.51e-05,2]
[344401430,1733415042666,-776.29,7.51e-05,2]
[344401431,1733415042677,-435.43,7.51e-05,2]
[344401432,1733415042688,-768.05,7.51e-05,2]
[344401433,1733415042701,-150.53,7.51e-05,2]
[344401434,1733415042712,-150.0,7.51e-05,2]
[344401435,1733415042722,-150.0,7.51e-05,2]
[344401436,1733415042732,-277.35,7.51e-05,2]
[344401437,1733415042742,-150.0,7.51e-05,2]
[344401438,1733415042754,-300.0,7.51e-05,2]
[344401439,1733415042764,-2000.0,7.6e-05,2]
[344401440,1733415042776,-2000.0,7.6e-05,2]
[344401441,1733415042788,-2000.0,7.6e-05,2]
[344401442,1733415042801,-2000.0,7.6e-05,2]
[344401443,1733415042813,-2000.0,7.6e-05,2]
[344401444,1733415042823,-2000.0,7.6e-05,2]
[344401445,1733415042833,-3119.05573215,7.6e-05,2]
[344401446,1733415042844,-2000.0,7.6e-05,2]
[344401447,1733415042854,-2000.0,7.6e-05,2]
[344401448,1733415042863,-500.0,7.616e-05,2]
[344401449,1733415042874,-282.0,7.616e-05,2]
[344401450,1733415042884,-12121.60923869,7.623e-05,2]
[344401452,1733415042895,-153.0,7.626e-05,2]
[344401453,1733415042906,-153.0,7.626e-05,2]
[344401454,1733415042917,-153.0,7.626e-05,2]
[344401455,1733415042930,-153.0,7.626e-05,2]
[344401457,1733415042941,-153.0,7.626e-05,2]
[344401459,1733415042951,-153.0,7.626e-05,2]
[344401461,1733415042962,-153.0,7.626e-05,2]
[344401463,1733415042973,-153.0,7.626e-05,2]
[344401464,1733415042983,-153.0,7.626e-05,2]
[344401465,1733415042993,-153.0,7.626e-05,2]
[344401467,1733415043003,-153.0,7.626e-05,2]
[344401468,1733415043013,-153.0,7.626e-05,2]
[344401469,1733415043023,-153.0,7.626e-05,2]
[344401470,1733415043037,-203.0,7.627e-05,2]
[344401471,1733415043047,-203.0,7.627e-05,2]
[344401472,1733415043059,-203.0,7.627e-05,2]
[344401473,1733415043070,-203.0,7.627e-05,2]
[344401474,1733415043080,-203.0,7.627e-05,2]
[344401475,1733415043090,-203.0,7.627e-05,2]
[344401476,1733415043101,-203.0,7.627e-05,2]
[344401477,1733415043115,-203.0,7.627e-05,2]
[344401478,1733415043125,-203.0,7.627e-05,2]
[344401479,1733415043136,-203.0,7.627e-05,2]
[344401480,1733415043150,-203.0,7.627e-05,2]
[344401481,1733415043160,-203.0,7.627e-05,2]
[344401482,1733415043171,-203.0,7.627e-05,2]
[344401483,1733415043181,-203.0,7.627e-05,2]
[344401484,1733415043192,-153.0,7.635e-05,2]
[344401485,1733415043202,-153.0,7.635e-05,2]
[344401486,1733415043212,-153.0,7.635e-05,2]
[344401487,1733415043222,-153.0,7.635e-05,2]
[344401488,1733415043232,-153.0,7.635e-05,2]
[344401489,1733415043243,-153.0,7.635e-05,2]
[344401490,1733415043259,-153.0,7.635e-05,2]
[344401491,1733415043269,-153.0,7.635e-05,2]
[344401492,1733415043283,-153.0,7.635e-05,2]
[344401493,1733415043293,-153.0,7.635e-05,2]
[344401494,1733415043303,-153.0,7.635e-05,2]
[344401495,1733415043314,-153.0,7.635e-05,2]
[344401496,1733415043326,-153.0,7.635e-05,2]
[344401497,1733415043337,-203.0,7.637e-05,2]
[344401498,1733415043350,-203.0,7.637e-05,2]